bitfinex-derivatives/quotes_SOLF0:USTF0_20230103
["timestamp","ask_amount","ask_price","bid_price","bid_amount"]
[1672769255062,0.06645962,12.883,12.873,7.69]
[1672769255272,5.06645962,12.883,12.873,7.69]
[1672769255895,7.69,12.876,12.865,7.68]
[1672769256113,5.06833881,12.875,12.865,7.68]
[1672769258006,7.63,12.872,12.861,12.67]
[1672769258217,0.06505919,12.871,12.862,5.0]
[1672769258743,0.06505919,12.871,12.861,7.67]
[1672769259269,0.06505919,12.871,12.864,7.61]
[1672769260105,0.06505919,12.871,12.866,7.68]
[1672769260321,50.0,12.89,12.87,7.61]
[1672769260322,51.6701,12.886,12.87,7.61]
[1672769260639,5.0,12.885,12.875,7.61]
[1672769261264,0.07047172,12.885,12.875,7.67663666]
[1672769261680,0.07047172,12.885,12.877,7.68]
[1672769261896,0.07047172,12.885,12.878,5.0]
[1672769262524,0.07047172,12.885,12.879,7.68]
[1672769262839,0.07047172,12.885,12.881,7.67]
[1672769263264,0.07047172,12.885,12.883,7.68]
[1672769263469,0.06843905,12.889,12.883,7.68]
[1672769263683,0.06083421,12.891,12.883,7.68]
[1672769264209,0.06083421,12.891,12.885,7.68]
[1672769265048,0.06083421,12.891,12.887,7.67]
[1672769267366,0.06083421,12.891,12.888,7.68]
[1672769267679,0.0611083,12.894,12.889,5.0]
[1672769267889,0.06682931,12.896,12.888,7.68]
[1672769268413,0.06682931,12.896,12.89,7.69]
[1672769272400,49.0186,12.9,12.896,0.07747486]
[1672769272616,44.0186,12.9,12.896,0.07747486]
[1672769273560,0.0604788,12.903,12.896,0.07747486]
[1672769273775,0.0604788,12.903,12.896,7.74747486]
[1672769274407,0.0604788,12.903,12.896,0.07747486]
[1672769285129,5.0,12.906,12.903,0.0338607]
[1672769285338,7.69,12.908,12.903,0.0338607]
[1672769288170,0.20420535,12.903,12.901,0.06238147]
[1672769288383,0.20420535,12.903,12.897,0.06593604]
[1672769295111,7.90420535,12.903,12.897,0.06593604]
[1672769296792,5.0,12.902,12.897,3.604e-05]
[1672769297105,5.0,12.902,12.896,0.07747486]
[1672769297316,5.0,12.9,12.896,7.486e-05]
[1672769301100,7.7,12.899,12.896,7.486e-05]
[1672769301519,5.0,12.898,12.896,7.486e-05]
[1672769304044,12.7,12.898,12.896,7.486e-05]
[1672769304885,5.0,12.897,12.882,7.7]
[1672769305095,7.71,12.896,12.882,7.7]
[1672769305307,5.0,12.895,12.882,7.7]
[1672769305723,7.68,12.892,12.878,7.7]
[1672769306040,0.06394021,12.89,12.881,0.06589401]
[1672769309720,0.06394021,12.89,12.881,7.72589401]
[1672769312769,0.06394021,12.89,12.881,0.06589401]
[1672769312770,7.68,12.888,12.881,0.06589401]
[1672769312979,5.0,12.887,12.881,0.06589401]
[1672769313194,7.61,12.884,12.881,0.06589401]
[1672769313397,12.74048744,12.883,12.872,7.68]
[1672769315502,7.74048744,12.883,12.872,7.68]
[1672769316662,7.68,12.881,12.87,7.62]
[1672769316871,0.06465,12.88,12.871,5.0]
[1672769317707,0.06465,12.88,12.87,7.62]
[1672769318442,0.06465,12.88,12.872,7.68]
[1672769319703,0.06465,12.88,12.873,7.68]
[1672769319915,0.06465,12.88,12.875,7.68]
[1672769321594,0.06465,12.88,12.873,7.68]
[1672769324006,0.06465,12.88,12.875,7.62]
[1672769325689,7.61,12.886,12.88,0.15896]
[1672769326427,7.68,12.884,12.88,0.15896]
[1672769326634,7.61,12.883,12.88,1e-08]
[1672769326850,12.61,12.883,12.88,1e-08]
[1672769327374,5.0,12.883,12.88,1e-08]
[1672769327797,7.62,12.882,12.88,1e-08]
[1672769330835,7.68,12.881,12.88,1e-08]
[1672769331045,5.0,12.88,12.87,7.68]
[1672769332098,5.06149487,12.88,12.87,7.68]
[1672769332308,0.06149487,12.88,12.87,7.68]
[1672769334097,5.06149487,12.88,12.87,7.68]
[1672769334309,7.67,12.877,12.866,51.2209]
[1672769334519,0.06486369,12.876,12.867,5.0]
[1672769335046,0.06486369,12.876,12.866,7.68]
[1672769337781,0.06486369,12.876,12.868,7.66]
[1672769337994,0.06486369,12.876,12.869,5.0]
[1672769338516,0.06486369,12.876,12.868,7.66]
[1672769345983,42.3896,12.882,12.876,0.11503664]
[1672769345984,50.0696,12.882,12.876,0.11503664]
[1672769346299,58.2,12.886,12.876,0.11503664]
[1672769346300,7.68,12.884,12.876,0.11503664]
[1672769347348,5.0,12.883,12.876,0.11503664]
[1672769347875,0.06212527,12.885,12.88,7.62]
[1672769349133,0.06212527,12.885,12.881,7.68]
[1672769349343,0.06212527,12.885,12.883,7.66]
[1672769349555,0.06486798,12.889,12.883,7.66]
[1672769349765,5.06839153,12.891,12.883,7.66]
[1672769350289,0.06839153,12.891,12.883,7.66]
[1672769354073,0.06839153,12.891,12.888,7.62]
[1672769354284,7.68,12.902,12.89,12.66]
[1672769354494,5.0,12.901,12.89,12.66]
[1672769354699,5.0,12.901,12.891,5.0]
[1672769354915,5.0,12.901,12.89,12.66]
[1672769355333,0.06354497,12.9,12.891,0.06197191]
[1672769356813,12.68,12.911,12.899,7.68]
[1672769357013,45.5778,12.91,12.899,7.68]
[1672769357227,5.0,12.909,12.899,7.68]
[1672769357431,12.61,12.909,12.899,7.68]
[1672769357647,7.68,12.902,12.892,7.68]
[1672769357958,5.0,12.899,12.892,0.06246116]
[1672769360068,50.5778,12.901,12.892,0.06246116]
[1672769360272,45.5778,12.901,12.892,0.06246116]
[1672769362477,0.06037555,12.902,12.892,0.06246116]
[1672769368048,0.06037555,12.902,12.892,7.73246116]
[1672769368787,7.63,12.893,12.876,0.11503664]
[1672769368991,5.0,12.892,12.876,0.11503664]
[1672769369413,5.0,12.892,12.876,5.11503664]
[1672769369837,0.06421269,12.889,12.88,7.62]
[1672769370258,5.0,12.898,12.886,7.61]
[1672769370462,5.0,12.898,12.888,7.62]
[1672769371416,5.07072196,12.898,12.888,7.68182942]
[1672769371728,5.07072196,12.898,12.888,0.06182942]
[1672769373517,12.74072196,12.898,12.888,0.06182942]
[1672769373728,7.62,12.892,12.888,0.06182942]
[1672769374257,5.0,12.891,12.878,7.62]
[1672769375302,0.06523925,12.889,12.88,0.06666319]
[1672769376562,5.0,12.887,12.88,0.06666319]
[1672769376767,7.67,12.886,12.88,0.06666319]
[1672769377089,5.0,12.885,12.88,0.06666319]
[1672769378659,7.63,12.883,12.88,0.06666319]
[1672769378977,7.63,12.883,12.876,0.11503664]
[1672769378978,5.0,12.882,12.877,0.06281803]
[1672769379921,0.06973032,12.886,12.877,0.06281803]
[1672769383496,7.63,12.884,12.877,0.06281803]
[1672769383705,5.0,12.883,12.877,0.06281803]
[1672769385600,7.65,12.885,12.877,0.06281803]
[1672769386334,7.5678541,12.885,12.877,0.06281803]
[1672769386543,0.06973032,12.886,12.877,0.06281803]
[1672769392218,7.65,12.884,12.877,0.06281803]
[1672769395684,7.65,12.881,12.867,7.62]
[1672769395900,7.63,12.879,12.868,5.0]
[1672769396213,5.0,12.878,12.868,5.0]
[1672769396627,5.0,12.878,12.867,5.0]
[1672769396844,0.06314662,12.877,12.868,0.06082685]
[1672769403671,7.63,12.876,12.868,0.06082685]
[1672769403887,5.0,12.875,12.868,0.06082685]
[1672769407876,0.06314662,12.877,12.868,0.06082685]
[1672769409140,5.0,12.875,12.868,0.06082685]
[1672769410498,4.7924371,12.875,12.868,0.06082685]
[1672769410924,7.67,12.874,12.868,0.06082685]
[1672769411138,5.0,12.873,12.868,0.06082685]
[1672769412082,4.7924371,12.875,12.868,0.06082685]
[1672769412294,12.63,12.876,12.868,0.06082685]
[1672769412609,0.06314662,12.877,12.868,0.06082685]
[1672769412919,0.06314662,12.877,12.868,7.68082685]
[1672769413339,7.65,12.875,12.868,0.06082685]
[1672769413658,5.0,12.874,12.868,0.06082685]
[1672769414709,7.7,12.872,12.868,0.06082685]
[1672769414920,5.0,12.871,12.861,7.63]
[1672769416076,5.06165506,12.871,12.861,7.63]
[1672769416603,7.7,12.87,12.86,7.69]
[1672769417014,5.0,12.869,12.86,7.69]
[1672769417224,12.68,12.869,12.858,7.7]
[1672769417439,0.07090747,12.868,12.858,7.7]
[1672769423423,0.07090747,12.868,12.857,7.7]
[1672769423637,5.0,12.865,12.856,5.0]
[1672769424060,5.0,12.865,12.855,7.65]
[1672769425008,5.0,12.865,12.857,7.7]
[1672769425423,0.06850805,12.866,12.857,7.7]
[1672769425640,0.06850805,12.866,12.859,7.65]
[1672769426479,0.06850805,12.866,12.857,7.63]
[1672769426690,0.06850805,12.866,12.858,5.0]
[1672769426900,0.06850805,12.866,12.858,12.7]
[1672769427322,0.06850805,12.866,12.858,7.7]
[1672769428370,12.7,12.867,12.866,0.02817001]
[1672769428583,5.0,12.866,12.856,7.7]
[1672769429311,5.06350752,12.866,12.856,7.76081417]
[1672769429524,5.06350752,12.866,12.858,7.7]
[1672769429737,0.06350752,12.866,12.858,7.7]
[1672769429944,0.06350752,12.866,12.856,12.77081417]
[1672769430372,0.06350752,12.866,12.856,7.77081417]
[1672769436988,0.06350752,12.866,12.856,0.06081417]
[1672769437204,7.77350752,12.866,12.856,0.06081417]
[1672769437512,5.0,12.865,12.856,0.06081417]
[1672769440774,4.82009486,12.865,12.856,0.06081417]
[1672769444351,7.66,12.862,12.856,0.06081417]
[1672769444561,0.00859159,12.856,12.848,7.71]
[1672769445713,0.07693156,12.856,12.848,7.71]
[1672769456959,0.07693156,12.856,12.847,5.0]
[1672769457165,7.71,12.859,12.856,0.06852085]
[1672769457377,7.71,12.861,12.856,0.06852085]
[1672769457905,12.67,12.863,12.856,0.06852085]
[1672769461796,7.67,12.863,12.856,0.06852085]
[1672769462109,0.0655173,12.864,12.856,0.06852085]
[1672769462320,7.7755173,12.864,12.856,0.06852085]
[1672769464212,0.0655173,12.864,12.856,0.06852085]
[1672769465155,0.0655173,12.864,12.858,7.65]
[1672769465475,0.0655173,12.864,12.859,7.71]
[1672769466423,0.0655173,12.864,12.857,7.71]
[1672769467685,0.0655173,12.864,12.859,7.71]
[1672769469784,0.0655173,12.864,12.857,7.71]
[1672769470621,12.66,12.871,12.864,0.0958625]
[1672769471359,5.0,12.868,12.864,0.0958625]
[1672769471675,5.0,12.868,12.856,0.06852085]
[1672769471886,0.06967062,12.867,12.857,0.064609]
[1672769475355,7.77967062,12.867,12.857,7.714609]
[1672769478929,7.67,12.865,12.857,0.064609]
[1672769479140,5.0,12.864,12.857,0.064609]
[1672769480714,7.71,12.863,12.857,0.064609]
[1672769480926,5.0,12.862,12.857,0.064609]
[1672769481138,12.71,12.862,12.857,0.064609]
[1672769481448,12.71,12.862,12.856,0.06852085]
[1672769481449,7.71,12.858,12.856,0.00852085]
[1672769481659,7.71,12.857,12.856,0.00852085]
[1672769482075,12.71,12.859,12.856,0.00852085]
[1672769484713,5.0,12.858,12.853,0.06971526]
[1672769485029,5.0,12.856,12.853,0.06971526]
[1672769485234,5.0,12.856,12.85,0.06443111]
[1672769485445,5.0,12.856,12.849,0.06863431]
[1672769487131,12.67,12.856,12.845,7.71]
[1672769487866,5.0,12.856,12.847,7.71]
[1672769488076,5.06409475,12.856,12.847,7.71]
[1672769490808,5.0,12.853,12.843,7.68]
[1672769491016,7.78088883,12.852,12.841,7.65]
[1672769491230,12.71,12.851,12.84,7.71]
[1672769491544,0.06444882,12.85,12.84,7.71]
[1672769491955,7.71,12.847,12.837,7.71]
[1672769492174,0.06363014,12.846,12.837,7.71]
[1672769492384,5.06363014,12.846,12.837,7.71]
[1672769493224,12.77363014,12.846,12.835,7.68]
[1672769493428,5.0,12.841,12.831,12.71]
[1672769493640,0.06531038,12.84,12.831,7.71]
[1672769494797,0.06531038,12.84,12.83,7.65]
[1672769495013,7.67,12.838,12.827,7.65]
[1672769495222,0.06203637,12.837,12.827,7.65]
[1672769495432,5.06203637,12.837,12.833,7.65]
[1672769495643,0.0702982,12.839,12.833,7.65]
[1672769496481,0.0702982,12.839,12.831,7.66]
[1672769497322,0.0702982,12.839,12.829,7.71]
[1672769498164,0.0702982,12.839,12.831,7.71]
[1672769498369,0.0702982,12.839,12.832,7.71]
[1672769498586,0.0702982,12.839,12.836,7.71]
[1672769498798,0.06717718,12.842,12.837,7.68]
[1672769499006,0.06764596,12.844,12.837,7.68]
[1672769499426,0.06764596,12.844,12.839,7.66]
[1672769499637,0.06764596,12.844,12.838,7.71]
[1672769499847,0.06764596,12.844,12.836,7.73]
[1672769500053,0.0681075,12.844,12.836,7.73]
[1672769502161,0.0681075,12.844,12.839,7.69]
[1672769502366,0.06733006,12.846,12.839,7.69]
[1672769502582,43.9769,12.852,12.846,0.08851238]
[1672769504260,5.06634601,12.853,12.846,0.08851238]
[1672769506989,12.79634601,12.853,12.846,0.08851238]
[1672769507204,7.66,12.851,12.846,0.08851238]
[1672769507416,5.0,12.85,12.846,0.08851238]
[1672769509090,7.66,12.851,12.846,0.08851238]
[1672769509317,12.79634601,12.853,12.846,0.08851238]
[1672769512775,7.79634601,12.853,12.846,0.08851238]
[1672769513929,5.0,12.852,12.846,0.08851238]
[1672769516133,7.79634601,12.853,12.846,0.08851238]
[1672769516554,7.57954452,12.853,12.846,0.08851238]
[1672769518130,7.73,12.849,12.846,0.08851238]
[1672769518443,5.0,12.848,12.846,0.08851238]
[1672769520230,7.67,12.851,12.846,0.08851238]
[1672769520442,57.67,12.85,12.846,0.08851238]
[1672769520650,5.0,12.849,12.846,0.08851238]
[1672769523590,57.67,12.85,12.846,0.08851238]
[1672769526012,7.67,12.85,12.846,0.08851238]
[1672769526748,7.67,12.85,12.844,0.06813866]
[1672769527376,57.67,12.85,12.844,0.06813866]
[1672769527903,57.67,12.85,12.836,7.68]
[1672769527904,5.0,12.849,12.836,7.68]
[1672769528431,5.0,12.847,12.834,7.73]
[1672769528850,0.06805993,12.845,12.836,0.06839881]
[1672769534841,0.06805993,12.845,12.842,7.73]
[1672769535052,0.06154232,12.848,12.842,7.73]
[1672769535260,0.06506893,12.849,12.842,7.73]
[1672769535470,0.06546046,12.85,12.842,7.73]
[1672769536620,0.06546046,12.85,12.846,7.73]
[1672769537040,57.67,12.847,12.814,31.0]
[1672769537251,7.67,12.835,12.821,7.67]
[1672769537461,50.0,12.84,12.824,7.69]
[1672769537672,5.0,12.839,12.824,7.69]
[1672769537885,5.0,12.839,12.825,7.73]
[1672769538097,7.67,12.838,12.825,7.73]
[1672769538302,5.0,12.83,12.82,7.67]
[1672769538932,5.0,12.837,12.823,7.65]
[1672769539144,5.0,12.837,12.827,7.65]
[1672769539359,0.07117991,12.836,12.827,7.65]
[1672769539677,0.07117991,12.836,12.825,7.73]
[1672769539878,50.0,12.831,12.822,7.67]
[1672769540093,5.0,12.83,12.822,7.67]
[1672769540616,50.0,12.823,12.803,5.0]
[1672769540827,50.0,12.811,12.803,5.0]
[1672769541147,0.07113017,12.812,12.796,50.0]
[1672769541460,0.06318675,12.808,12.797,5.0]
[1672769541670,0.06318675,12.808,12.804,7.72]
[1672769541883,0.06318675,12.808,12.801,7.68]
[1672769542191,7.75,12.807,12.795,7.68]
[1672769542403,0.06318309,12.805,12.797,7.72]
[1672769542613,0.07085137,12.805,12.797,7.72]
[1672769542821,0.07085137,12.805,12.802,7.72]
[1672769543135,0.06338958,12.808,12.802,7.72]
[1672769543344,0.06338958,12.808,12.8,7.73]
[1672769543561,5.0,12.805,12.794,7.71]
[1672769543778,0.06394323,12.804,12.794,7.71]
[1672769543981,7.69,12.802,12.79,7.71]
[1672769544292,7.71,12.797,12.786,7.71]
[1672769544508,0.06363109,12.796,12.795,7.71]
[1672769544714,0.06881305,12.8,12.795,7.71]
[1672769544920,0.06881305,12.8,12.791,31.0]
[1672769544921,0.06881305,12.8,12.799,7.73]
[1672769545135,0.06532617,12.804,12.799,7.73]
[1672769545344,0.06684289,12.806,12.803,7.72]
[1672769545558,0.06530073,12.809,12.805,7.71]
[1672769545766,0.06384655,12.811,12.808,7.72]
[1672769545979,50.0,12.811,12.805,7.68]
[1672769546188,5.0,12.81,12.803,7.72]
[1672769547246,5.0,12.81,12.801,7.68]
[1672769547562,5.06701704,12.81,12.801,7.68]
[1672769548399,50.0,12.802,12.793,7.75]
[1672769548614,5.0,12.801,12.793,7.75]
[1672769548821,5.0,12.801,12.791,7.75]
[1672769549033,0.06578841,12.8,12.791,7.75]
[1672769549455,0.06578841,12.8,12.789,7.73]
[1672769549664,0.06469482,12.799,12.789,7.73]
[1672769550406,7.74469482,12.799,12.788,7.72]
[1672769550613,7.69,12.796,12.785,7.68]
[1672769550820,0.06017756,12.795,12.787,7.68]
[1672769551236,0.06017756,12.795,12.79,7.71]
[1672769551454,12.75,12.809,12.794,7.71]
[1672769551766,12.75,12.809,12.797,7.71]
[1672769551971,12.75,12.809,12.798,5.0]
[1672769552179,100.4613,12.812,12.801,7.71]
[1672769552605,0.07096011,12.81,12.802,0.06964758]
[1672769553761,5.0,12.809,12.802,0.06964758]
[1672769553966,5.0,12.808,12.802,0.06964758]
[1672769554808,7.71,12.809,12.802,0.06964758]
[1672769555024,0.07096011,12.81,12.803,7.75]
[1672769556602,0.07096011,12.81,12.802,0.06964758]
[1672769556810,7.82096011,12.81,12.802,0.06964758]
[1672769557019,5.0,12.809,12.802,0.06964758]
[1672769558593,7.68,12.803,12.792,7.73]
[1672769559120,7.75,12.808,12.797,7.68]
[1672769559644,0.06994786,12.807,12.797,7.68]
[1672769560698,7.75,12.806,12.795,7.73]
[1672769560904,7.75,12.806,12.796,5.0]
[1672769561851,0.06994786,12.807,12.796,5.0]
[1672769564059,0.06994786,12.807,12.793,5.0]
[1672769565001,0.06994786,12.807,12.789,24.45]
[1672769565218,0.06796671,12.802,12.788,5.0]
[1672769565426,5.06796671,12.802,12.785,19.27]
[1672769565742,0.07113358,12.798,12.783,47.2067]
[1672769565949,0.06857462,12.795,12.783,47.2067]
[1672769567002,0.06857462,12.795,12.783,42.2067]
[1672769567425,0.06857462,12.795,12.784,5.0]
[1672769569101,0.06857462,12.795,12.783,47.2067]
[1672769569634,0.06857462,12.795,12.784,5.0]
[1672769570675,0.06857462,12.795,12.783,42.2067]
[1672769570891,5.0,12.8,12.795,0.17021128]
[1672769571101,5.0,12.8,12.784,5.0]
[1672769571519,5.0,12.8,12.782,5.0]
[1672769571733,19.36,12.799,12.782,5.0]
[1672769572048,0.0623253,12.795,12.786,0.06437253]
[1672769572573,5.0,12.803,12.786,0.06437253]
[1672769572574,24.41,12.812,12.791,19.45]
[1672769572784,46.6222,12.806,12.792,5.0]
[1672769573095,46.6222,12.806,12.788,5.0]
[1672769573307,19.36,12.802,12.788,5.0]
[1672769573517,0.06144421,12.799,12.791,0.06970028]
[1672769574568,51.6222,12.81,12.794,19.45]
[1672769574777,51.6222,12.81,12.795,5.0]
[1672769575731,0.06061288,12.807,12.798,0.07079905]
[1672769576993,0.0254325,12.798,12.795,5.0]
[1672769577203,5.0,12.81,12.797,19.45]
[1672769577414,5.0,12.811,12.798,5.0]
[1672769577726,49.2947,12.815,12.798,5.0]
[1672769577938,0.066181,12.81,12.801,19.51791986]
[1672769578148,0.066181,12.81,12.802,5.0]
[1672769578776,5.0,12.819,12.802,5.0]
[1672769579936,5.0,12.819,12.806,0.06580909]
[1672769579937,0.06809165,12.814,12.806,0.06580909]
[1672769584665,50.0,12.813,12.806,0.06580909]
[1672769584876,5.0,12.812,12.806,0.06580909]
[1672769585399,5.0,12.812,12.794,19.34]
[1672769585813,19.45,12.809,12.788,55.0]
[1672769586029,5.0,12.808,12.79,42.3694]
[1672769586243,5.0,12.808,12.788,55.0]
[1672769586451,0.06635001,12.803,12.794,0.06077076]
[1672769588551,5.06635001,12.803,12.794,0.06077076]
[1672769589391,44.5323,12.802,12.794,0.06077076]
[1672769589703,5.0,12.801,12.794,0.06077076]
[1672769591073,5.0,12.801,12.794,7.076e-05]
[1672769591282,19.45,12.798,12.779,5.0]
[1672769591592,19.45,12.795,12.776,5.0]
[1672769591805,5.0,12.794,12.778,50.0]
[1672769592016,5.0,12.794,12.779,5.0]
[1672769592229,0.06279996,12.791,12.782,0.06712878]
[1672769593062,0.06279996,12.791,12.782,5.06712878]
[1672769594010,58.56,12.807,12.784,19.27]
[1672769594219,50.0,12.804,12.789,19.45]
[1672769594434,5.0,12.803,12.785,5.0]
[1672769594644,5.0,12.803,12.783,5.0]
[1672769595168,0.0668495,12.797,12.789,0.06177677]
[1672769595380,0.06872656,12.797,12.789,0.06177677]
[1672769600006,19.36,12.79,12.764,19.37]
[1672769600217,19.45,12.786,12.765,5.0]
[1672769600423,5.0,12.785,12.765,47.7363]
[1672769600638,50.0,12.784,12.765,42.7363]
[1672769600849,19.36,12.782,12.765,42.7363]
[1672769601162,5.0,12.783,12.769,0.06155116]
[1672769601163,19.42436069,12.778,12.769,0.06155116]
[1672769601373,5.0,12.773,12.754,19.45]
[1672769601584,5.0,12.773,12.755,5.0]
[1672769601788,19.28,12.772,12.755,5.0]
[1672769602002,5.0,12.771,12.755,5.0]
[1672769602424,0.06301436,12.767,12.755,5.0]
[1672769602636,0.06301436,12.767,12.757,19.45]
[1672769602846,0.06301436,12.767,12.758,5.0]
[1672769603787,1.436e-05,12.767,12.749,42.7363]
[1672769604001,5.0,12.779,12.764,19.45]
[1672769604211,5.0,12.779,12.765,5.0]
[1672769604947,0.06391972,12.776,12.768,0.0634793]
[1672769607049,50.0,12.775,12.768,0.0634793]
[1672769607261,5.0,12.774,12.768,0.0634793]
[1672769607568,5.0,12.774,12.758,24.36]
[1672769607569,5.0,12.774,12.752,5.0]
[1672769607786,5.0,12.774,12.754,19.3]
[1672769608100,5.0,12.774,12.755,5.0]
[1672769608312,19.45,12.773,12.751,24.45]
[1672769608625,5.0,12.774,12.749,55.0]
[1672769608626,0.06049147,12.766,12.749,55.0]
[1672769608832,0.06250016,12.762,12.749,55.0]
[1672769609249,0.06250016,12.762,12.752,5.0]
[1672769609991,0.06250016,12.762,12.751,19.3]
[1672769610201,0.06250016,12.762,12.749,44.2828]
[1672769610835,0.06250016,12.762,12.744,19.35]
[1672769611041,0.06611266,12.757,12.744,19.35]
[1672769611250,0.06611266,12.757,12.745,5.0]
[1672769611460,0.06611266,12.757,12.749,5.0]
[1672769611671,5.0,12.769,12.752,19.42]
[1672769611876,5.0,12.77,12.759,19.45]
[1672769612297,49.5134,12.777,12.76,5.0]
[1672769612620,47.4786,12.78,12.766,5.0]
[1672769612829,50.0618883,12.776,12.768,0.06386564]
[1672769613035,5.0,12.775,12.757,19.35]
[1672769613245,50.0,12.766,12.749,5.0]
[1672769613461,14.36178419,12.774,12.749,5.0]
[1672769613674,5.0,12.765,12.75,43.6851]
[1672769613879,5.0,12.765,12.751,5.0]
[1672769614084,0.06368939,12.762,12.751,5.0]
[1672769614510,0.06368939,12.762,12.749,55.0]
[1672769614933,0.06368939,12.762,12.753,19.34]
[1672769615775,0.06368939,12.762,12.754,5.0]
[1672769616301,0.06368939,12.762,12.76,19.45]
[1672769616512,0.06405711,12.765,12.761,5.0]
[1672769616720,0.06416296,12.767,12.761,5.0]
[1672769617035,0.06624423,12.768,12.76,19.45]
[1672769617246,0.06631597,12.768,12.76,19.45]
[1672769617669,5.0,12.781,12.766,19.43]
[1672769617881,5.0,12.781,12.767,5.0]
[1672769618299,5.0,12.781,12.766,19.43]
[1672769618719,0.06034765,12.777,12.768,0.06895925]
[1672769619136,50.0,12.776,12.768,0.06895925]
[1672769619453,5.0,12.775,12.756,19.37]
[1672769619664,19.38,12.772,12.748,19.27]
[1672769619878,5.0,12.771,12.748,19.27]
[1672769620296,0.06210536,12.764,12.748,19.27]
[1672769620611,0.06503568,12.76,12.748,19.27]
[1672769620814,0.06110423,12.758,12.748,19.27]
[1672769621024,0.06398802,12.757,12.748,19.27]
[1672769621235,0.06442001,12.757,12.748,19.27]
[1672769621872,0.06442001,12.757,12.743,19.45]
[1672769622087,0.06090618,12.754,12.743,19.45]
[1672769622396,0.06983657,12.753,12.74,19.45]
[1672769622601,0.07024439,12.751,12.737,19.36]
[1672769622818,0.0619809,12.748,12.737,19.36]
[1672769623027,0.06625079,12.747,12.737,19.36]
[1672769623234,0.06833319,12.746,12.735,5.0]
[1672769623444,0.06976422,12.745,12.735,5.0]
[1672769623656,0.0684611,12.744,12.735,5.0]
[1672769623874,0.06649666,12.744,12.735,5.0]
[1672769624078,0.06649666,12.744,12.731,19.35]
[1672769624500,0.06649666,12.744,12.72,58.96]
[1672769624815,0.06775507,12.736,12.731,19.45]
[1672769625025,5.0,12.747,12.731,19.45]
[1672769625234,5.0,12.754,12.739,19.37]
[1672769625438,5.0,12.754,12.739,50.0]
[1672769625655,5.0,12.754,12.74,5.0]
[1672769625871,0.07115937,12.751,12.742,19.35]
[1672769626081,0.07115937,12.751,12.743,5.06847188]
[1672769626291,0.07115937,12.751,12.743,0.06847188]
[1672769631650,50.0,12.747,12.728,5.0]
[1672769631860,5.0,12.748,12.735,5.0]
[1672769632705,0.06249504,12.746,12.735,5.0]
[1672769633123,0.06249504,12.746,12.734,19.42]
[1672769633335,0.06249504,12.746,12.73,24.37]
[1672769633542,0.07011563,12.742,12.73,24.37]
[1672769634284,0.07011563,12.742,12.73,19.37]
[1672769635323,0.07011563,12.742,12.728,5.0]
[1672769635640,0.07011563,12.742,12.724,19.37]
[1672769635856,0.06238646,12.737,12.725,5.0]
[1672769636277,0.06238646,12.737,12.72,66.6741]
[1672769636485,0.06480442,12.733,12.72,66.6741]
[1672769637438,0.06480442,12.733,12.72,61.6741]
[1672769637745,0.06480442,12.733,12.715,5.0]
[1672769637962,0.06524528,12.728,12.715,5.0]
[1672769638382,19.51524528,12.728,12.707,19.45]